Cogmind - Beta 10.2 @@@ ROGUE MODE // 2021.07.30 @ 11:43:18 Player: CrossedViper Result: Destroyed by H-88 Terminator with KE Penetrator Performance ------------- Evolutions (9) 4500 Regions Visited (25) 5000 Robots Destroyed (277) 1385 Value Destroyed (12958) 12958 Prototype IDs (40) 800 Alien Tech Used (4) 800 Bonus (8664) 8664 TOTAL SCORE: 34107 Bonus ------- High Alert Combat Kills 2389 Follower Combat Kills 4518 Network Hubs Disabled 200 Met Warlord at Base 500 MAIN.C Attacked Warlord 500 Warlord Defense Kill 1902 Built Enhanced Grunts 300 A7 Reached Mainframe 300 Met R17 at Cetus 500 Met Warlord at Research 2000 Scanned by Researcher 500 Friendly Fire -4945 Cogmind --------- Core Integrity 0/1600 Matter 300/300 Energy 99/100 System Corruption 1% Temperature Cool (0) Movement Core (50) Location -1/Command Parts ------- > --- POWER (3) -------- (None) > --- PROPULSION (6) --- Combat Linear Gravjet > --- UTILITY (12) ----- Experimental Signal Interpreter > --- WEAPON (4) ------- (None) > --- INVENTORY (4) ---- Stealth Drone Bay (2/2) Sigix Broadsword Peak State ------------ > --- POWER ------------ Singularity Reactor > --- PROPULSION ------- Biometal Medium Treads Advanced Heavy Treads Centrium Heavy Treads > --- UTILITY ---------- Large Storage Unit Advanced Sensor Array Experimental Signal Interpreter Experimental Targeting Computer Advanced Armor Integrity Analyzer Phase Armor Matter Drive > --- WEAPON ----------- Improved KE Penetrator Improved KE Penetrator Sigix Broadsword > --- INVENTORY -------- Light Particle Reactor Improved Quantum Reactor Stealth Drone Bay Long-range Proton Cannon Disintegrator [Rating: 201] Favorites ----------- Power Vortex Chain Reactor Engine Improved Ion Engine Power Core Enhanced Nuclear Core Reactor Vortex Chain Reactor Propulsion Light Treads Treads Light Treads Wheel Armored Huge Wheel Hover Unit Combat Linear Gravjet Flight Unit Cooled Field Propulsion Drive Utility Large Storage Unit Device Minesniffer Drone Bay Storage Large Storage Unit Processor Advanced Salvage Targeting Computer Hackware Improved Hacking Suite Protection Centrium Medium Armor Plating Artifact Phase Armor Weapon Helical Railgun Energy Gun Vortex Shotgun Energy Cannon Particle Cannon Ballistic Gun Helical Railgun Launcher Gamma Bomb Array Special Weapon Enhanced Flamer Slashing Weapon Sigix Broadsword Build | -11 -10 -10 -10 -9 -8 -7 -6 -6 -6 -6 -6 -5 -5 -5 -5 -5 -5 -4 -4 -3 -3 -2 -2 -1 -1 ------- Run | Scr Mat Min Exi Min Mat Fac Fac Ext Cet Arc Hub Fac Was Fac Upp Upp War Pro Fac Res Tes Res Qua Acc Com Slots Evolved 18 | . . . . . 4 2 2 . . . . 2 . . . . . . 2 2 . 2 . 2 . Power 2 | . . . . . . . . . . . . . . . . . . . 1 . . . . 1 . Propulsion 4 | . . . . . . 1 1 . . . . . . . . . . . . . . 2 . . . Utility 10 | . . . . . 3 . 1 . . . . 2 . . . . . . 1 2 . . . 1 . Weapon 2 | . . . . . 1 1 . . . . . . . . . . . . . . . . . . . Parts Attached 260 | 7 8 6 2 1 28 7 2 21 11 6 . 17 6 2 1 3 41 2 3 4 42 8 16 11 5 Power 28 | 1 2 1 . . 3 1 . 1 1 . . 2 2 . . 1 1 . 1 . 4 3 2 1 1 Engine 9 | 1 1 1 . . 3 . . 1 . . . 2 . . . . . . . . . . . . . Core 4 | . 1 . . . . 1 . . . . . . . . . 1 . . . . 1 . . . . Reactor 15 | . . . . . . . . . 1 . . . 2 . . . 1 . 1 . 3 3 2 1 1 Propulsion 46 | 2 2 2 . . 4 3 1 8 3 1 . 2 . . . . 2 1 . 1 3 3 . 6 2 Treads 37 | 2 2 2 . . 4 2 1 8 3 1 . 1 . . . . 2 1 . 1 3 3 . 1 . Leg . | . . . . . . . . . . . . . . . . . . . . . . . . . . Wheel 1 | . . . . . . . . . . . . 1 . . . . . . . . . . . . . Hover 5 | . . . . . . 1 . . . . . . . . . . . . . . . . . 3 1 Flight 3 | . . . . . . . . . . . . . . . . . . . . . . . . 2 1 Utility 88 | 2 . . 2 1 11 . 1 5 4 3 . 8 3 1 1 1 20 1 2 3 15 1 3 . . Device 42 | . . . . . 3 . . . 1 . . 3 3 . . 1 14 1 1 2 11 1 1 . . Storage 8 | 2 . . 2 . 1 . . . . 1 . . . . . . 1 . . . 1 . . . . Processor 9 | . . . . . . . . . . . . 2 . . . . 5 . . 1 1 . . . . Hackware 5 | . . . . . . . . 3 . . . 1 . . . . . . 1 . . . . . . Protection 22 | . . . . 1 7 . 1 2 3 2 . 2 . 1 1 . . . . . 2 . . . . Artifact 2 | . . . . . . . . . . . . . . . . . . . . . . . 2 . . Weapon 98 | 2 4 3 . . 10 3 . 7 3 2 . 5 1 1 . 1 18 . . . 20 1 11 4 2 Energy Gun 7 | . 1 . . . 1 . . . 1 . . . . . . . 4 . . . . . . . . Energy Cannon 17 | . 2 2 . . . . . . . . . . . . . 1 6 . . . 4 . . 2 . Ballistic Gun 60 | 2 1 1 . . 6 2 . 7 2 2 . 5 1 1 . . 5 . . . 15 1 7 2 . Ballistic Cannon . | . . . . . . . . . . . . . . . . . . . . . . . . . . Launcher 4 | . . . . . 1 . . . . . . . . . . . 1 . . . . . 2 . . Special Weapon 4 | . . . . . 2 1 . . . . . . . . . . 1 . . . . . . . . Impact Weapon . | . . . . . . . . . . . . . . . . . . . . . . . . . . Slashing Weapon 6 | . . . . . . . . . . . . . . . . . 1 . . . 1 . 2 . 2 Piercing Weapon . | . . . . . . . . . . . . . . . . . . . . . . . . . . Special Melee Weapon . | . . . . . . . . . . . . . . . . . . . . . . . . . . Unidentified Prototypes 41 | . . . . . . 2 . . 3 1 . 2 . . . 1 13 . 2 . 12 . 3 2 . Parts Lost 62 | . 2 1 . . 14 . . 2 . . . 8 . 1 . 5 3 1 . . 1 . 5 15 4 Power 6 | . 1 1 . . 1 . . . . . . 1 . . . 1 . . . . . . . . 1 Propulsion 16 | . 1 . . . 3 . . 1 . . . . . . . . . 1 . . . . 1 6 3 Utility 21 | . . . . . 4 . . . . . . 4 . 1 . 2 . . . . 1 . 4 5 . Weapon 19 | . . . . . 6 . . 1 . . . 3 . . . 2 3 . . . . . . 4 . Highest Loss Streak 10 | . 1 1 . . 4 . . 1 . . . 5 . 1 . 3 2 1 . . 1 . 3 10 4 Average Slot Usage (%) 87 | . 98 98 100 100 97 99 100 99 97 92 93 89 88 87 87 77 76 85 84 85 85 77 70 34 21 Engine 2 | . 4 12 14 14 8 . . 1 4 . . 3 3 . . . . . . . . . . . . Core 1 | . 9 . . . . 6 6 4 . . . . . . . 2 4 . . . . . . . . Reactor 1 | . . . . . . . . . 1 6 6 1 1 5 5 . . 5 5 4 3 4 4 2 3 Treads 15 | . 27 28 28 28 17 22 26 26 24 20 20 12 5 5 5 5 6 8 10 9 12 12 12 4 . Wheel 1 | . . . . . . . . . . . . 1 5 5 5 5 3 . . . . . . . . Device 8 | . . . . . 5 7 6 . 4 6 6 12 8 6 5 6 17 11 12 15 19 17 11 2 . Storage 13 | . 28 28 28 14 18 15 13 13 13 13 13 11 11 11 11 11 12 11 10 9 8 8 7 2 . Processor 6 | . . . . . . . . . . . . 3 11 11 11 11 11 23 21 23 16 13 13 9 4 Hackware 2 | . . . . . . . . 18 1 . . 1 . . . . . . 2 2 . . . . . Protection 7 | . . . . 13 20 15 20 7 18 20 20 14 13 15 16 12 2 . . . 3 4 2 . . Energy Cannon 2 | . 8 13 14 14 1 . . . . . . . . . . 1 5 . . . . 4 1 . . Ballistic Gun 18 | . 18 14 14 14 18 28 26 26 25 25 26 22 23 23 23 17 3 23 21 19 18 13 12 3 . Naked Turns . | . . . . . . . . . . . . . . . . . . . . . . . . . . Heaviest Build 145 | 13 18 22 46 35 58 64 67 67 82 88 88 96 85 91 91 86 109 89 117 118 133 131 145 139 28 Greatest Support 225 | 40 40 40 40 40 40 60 80 80 120 123 123 133 28 28 80 80 160 160 107 135 150 225 225 185 32 Greatest Overweight (x) 3 | . . . 1 . 2 1 . . 1 . . 2 3 3 3 3 3 1 1 1 1 . . 3 . Average Overweight (x) . | . . . . . 1 1 . . . . . . 2 2 2 1 1 . 1 . . . . . . Largest Inventory Capacity 16 | 8 8 8 16 16 16 16 16 16 16 16 16 16 16 16 16 16 16 16 16 16 16 16 16 10 4 Average Capacity 14 | 5 8 8 10 10 15 16 16 16 16 16 16 16 16 16 16 16 16 16 16 16 15 16 14 7 4 Most Carried 16 | 4 8 8 9 10 14 16 16 16 16 16 16 16 16 16 15 16 16 16 16 16 16 16 16 8 4 Average Carried 13 | 1 5 7 8 9 9 13 15 15 15 15 16 15 15 15 15 15 15 15 14 13 15 15 13 5 2 Final Capacity 16 | 8 8 8 16 10 16 16 16 16 16 16 16 16 16 16 16 16 16 16 16 16 16 16 10 4 4 Final Carried 16 | 2 7 8 8 10 11 16 16 16 16 16 16 16 16 15 15 15 16 16 14 16 16 15 8 4 4 Class Distribution -------------------- 37% | Scavenger-Tank 25% | Scavenger-Mutant 21% | Scavenger-Gunner 12% | Mutant Dominant Class ---------------- Mutant | -10/Materials Scavenger-Mutant | -10/Mines Scavenger-Mutant | -10/Exiles Scavenger-Mutant | -9/Mines Scavenger-Tank | -8/Materials Scavenger-Mutant | -7/Factory Scavenger-Tank | -6/Factory Scavenger-Tank | -6/Extension Scavenger-Tank | -6/Cetus Scavenger-Tank | -6/Archives Scavenger-Tank | -6/Hub_04(d) Scavenger-Tank | -5/Factory Scavenger-Tank | -5/Waste Scavenger-Tank | -5/Factory Scavenger-Tank | -5/Upper Caves Scavenger-Tank | -5/Upper Caves Scavenger-Mutant | -5/Warlord Scavenger-Gunner | -4/Proximity Caves Scavenger-Gunner | -4/Factory Scavenger-Skirmisher | -3/Research Scavenger-Gunner | -3/Testing Scavenger-Gunner | -2/Research Scavenger-Mutant | -2/Quarantine Generator-Mutant | -1/Access Mutant | -1/Command Resources | -11 -10 -10 -10 -9 -8 -7 -6 -6 -6 -6 -6 -5 -5 -5 -5 -5 -5 -4 -4 -3 -3 -2 -2 -1 -1 ----------- Run | Scr Mat Min Exi Min Mat Fac Fac Ext Cet Arc Hub Fac Was Fac Upp Upp War Pro Fac Res Tes Res Qua Acc Com Matter Collected 9576 | 266 159 125 . 75 835 179 101 1398 272 168 170 1209 428 116 368 278 564 252 116 74 1269 129 869 86 70 Remotely . | . . . . . . . . . . . . . . . . . . . . . . . . . . Salvage Created 15408 | 99 474 453 . 235 1350 123 138 1744 69 149 411 2131 556 507 463 673 916 527 150 105 1543 84 2281 227 . Parts 755 | 3 29 29 . 9 68 8 5 67 1 6 17 116 26 21 26 36 38 40 10 6 85 4 88 17 . Haulers Intercepted 11 | . 2 . . . 1 1 . 3 . . 1 1 . . . . . . . . 2 . . . . Recyclers Shooed 15 | . 4 2 . . 2 1 . 1 . . . 2 . 3 . . . . . . . . . . . Parts Field Recycled . | . . . . . . . . . . . . . . . . . . . . . . . . . . Retrieved Matter . | . . . . . . . . . . . . . . . . . . . . . . . . . . Parts Self-Destructed 254 | . . . . . . . . . . . . . . . 26 34 154 40 . . . . . . . Prevented 30 | . . . . . . . . . . . . . . . . . 30 . . . . . . . . Kills | -11 -10 -10 -10 -9 -8 -7 -6 -6 -6 -6 -6 -5 -5 -5 -5 -5 -5 -4 -4 -3 -3 -2 -2 -1 -1 ------- Run | Scr Mat Min Exi Min Mat Fac Fac Ext Cet Arc Hub Fac Was Fac Upp Upp War Pro Fac Res Tes Res Qua Acc Com Combat Hostiles Destroyed 207 | . 12 9 . 7 26 . 2 16 2 2 3 31 . 6 9 9 12 7 2 1 15 1 34 1 . Melee 2 | . . . . . . . . . . . . . . . . . . . . . 2 . . . . Guns 166 | . 6 5 . 6 20 . 2 16 2 2 3 31 . 6 9 9 5 7 2 1 13 1 19 1 . Cannons 15 | . 6 4 . 1 2 . . . . . . . . . . . 1 . . . . . 1 . . AOE 18 | . . . . . 3 . . . . . . . . . . . 1 . . . . . 14 . . Classes Destroyed 22 | 1 5 1 . . 3 1 . 3 . . . 1 1 . . . 2 . . . 3 . 1 . . Worker 10 | . . . . . . 3 . 1 . . . 2 . . . . . . . . 1 . 2 1 . Builder 8 | . . . . . 2 . . 1 . . . 4 . . . . . . . . 1 . . . . Tunneler 1 | . . . . . . . . 1 . . . . . . . . . . . . . . . . . Hauler 11 | . 2 . . . 1 1 . 3 . . 1 1 . . . . . . . . 2 . . . . Recycler 9 | 1 . 2 . . 2 . . . . . . . . . . . . . . . 2 . 2 . . Mechanic 2 | . . . . . . . . . . . . . . . . . . . . . 1 . 1 . . Operator 4 | . 1 . . . . . 1 1 . . 1 . . . . . . . . . . . . . . Watcher 9 | . 1 . . . 1 1 . 3 . . . 1 . . . . . . . . 1 . 1 . . Swarmer 37 | . 6 3 . 3 4 . . . 1 . . 6 . 3 4 2 . . . . 5 . . . . Grunt 83 | . 6 4 . 4 16 . 2 6 . . 2 14 . . 5 1 6 . . . 1 . 16 . . Brawler 3 | . . . . . 1 . . . . . . 1 . . . . 1 . . . . . . . . Duelist 5 | . . . . . . . . . . . . 2 . . . 1 . . . . . . 2 . . Protector 1 | . . . . . . . . . . . . . . . . . . . . . . . 1 . . Researcher 3 | . . . . . . . . . . . . . . . . . . . . . 2 . 1 . . Sentry 22 | . . 2 . . 4 . . 6 . 2 . 2 . 3 . 1 . . 1 1 . . . . . Hunter 23 | . . . . . 1 . . 1 . . 1 3 . . . 2 . 2 . . 2 1 10 . . Programmer 22 | . . . . . . . . 1 . . . 3 . . . 2 1 4 1 . 5 . 5 . . Behemoth 4 | . . . . . . . . 2 . . . . . . . . . 1 . . . . . 1 . Cetus Guard 1 | . . . . . . . . . 1 . . . . . . . . . . . . . . . . Enhanced Grunt 1 | . . . . . . . . . . . 1 . . . . . . . . . . . . . . Striker 1 | . . . . . . . . . . . . . . . . . 1 . . . . . . . . Executioner 3 | . . . . . . . . . . . . . . . . . 3 . . . . . . . . Alpha 7 1 | . . . . . . . . . . . . . . . . . . . . . 1 . . . . Protovariant D 1 | . . . . . . . . . . . . . . . . . . . . . 1 . . . . Thug 7 | . . . . . . . . 1 . . . . 4 2 . . . . . . . . . . . Butcher 1 | . . . . . . . . . . . . . 1 . . . . . . . . . . . . Martyr 2 | . . . . . . . . . . . . . 2 . . . . . . . . . . . . Guerrilla 2 | . . . . . . . . 1 . . 1 . . . . . . . . . . . . . . Best Kill Streak 21 | 1 4 2 . 3 6 2 2 5 1 2 2 13 . 3 4 6 7 3 1 1 5 1 21 2 . Combat Bots Only 18 | . 3 2 . 3 6 . 2 3 1 2 1 6 . 3 4 6 7 3 1 1 5 1 18 1 . Max Kills in Single Turn 6 | 1 1 1 . 1 3 1 1 2 1 1 2 3 1 2 3 2 2 1 1 1 3 1 6 1 . Gunslinging 2 | . . . . . 1 . . . . . . 2 . 1 2 1 . . . . 2 . 1 . . Exploded 4 | . . . . . 2 . . . . . . . . . . . 1 . . . . . 4 . . Melee 1 | . . . . . . . . . . . . . . . . . . . . . 1 . . . . Uniques/NPCs Destroyed . | . . . . . . . . . . . . . . . . . . . . . . . . . . Combat | -11 -10 -10 -10 -9 -8 -7 -6 -6 -6 -6 -6 -5 -5 -5 -5 -5 -5 -4 -4 -3 -3 -2 -2 -1 -1 -------- Run | Scr Mat Min Exi Min Mat Fac Fac Ext Cet Arc Hub Fac Was Fac Upp Upp War Pro Fac Res Tes Res Qua Acc Com Damage Taken 25587 | . 684 503 . 218 2064 . 38 1805 152 100 298 2128 . 407 430 911 1255 1369 49 42 2069 348 5228 4277 1212 Core 3630 | . 93 63 . 41 261 . . 140 15 . 12 171 . 48 . 32 291 64 . . 169 31 596 1122 481 Absorbed by Shields 1661 | . . . . . . . . 19 117 . . . . . . . . . 16 13 560 335 601 . . Reduced by Siege Mode 508 | . . . . . . . . . . . . 22 . . 9 15 . 131 . . 40 . 291 . . Redirected to Core 686 | . . . . . . . . . . . . . . . . . . . . . . . 503 183 . Core Remaining (%) 70 | 100 . . . 21 52 100 . . . . 80 . . . . . . 39 100 . 87 . 56 . . Volleys Fired 674 | 3 68 37 . 12 101 13 8 63 10 6 12 73 16 12 13 20 45 13 4 4 48 8 62 23 . Largest 4 | 2 2 2 . 2 3 4 4 4 4 4 4 4 4 4 4 4 4 4 4 4 4 4 4 3 . Hottest 316 | 40 88 91 . 91 171 91 99 112 240 112 122 129 129 134 134 179 240 149 149 149 202 202 199 316 . Shots Fired 1909 | 6 123 67 . 23 245 37 26 251 37 24 48 274 66 49 53 62 79 52 16 7 154 23 153 34 . Gun 1719 | 6 92 37 . 12 201 32 26 251 37 24 48 274 66 49 53 58 45 52 16 7 152 22 140 19 . Cannon 147 | . 31 30 . 11 16 . . . . . . . . . . 4 31 . . . 2 1 6 15 . Launcher 13 | . . . . . 3 . . . . . . . . . . . 3 . . . . . 7 . . Special 30 | . . . . . 25 5 . . . . . . . . . . . . . . . . . . . Kinetic 1698 | 6 92 37 . 12 198 32 26 251 36 24 48 274 66 49 53 58 28 52 16 7 152 22 140 19 . Thermal 141 | . 31 30 . 11 44 5 . . 1 . . . . . . 4 5 . . . . . . 10 . Explosive 3 | . . . . . 3 . . . . . . . . . . . . . . . . . . . . Electromagnetic 44 | . . . . . . . . . . . . . . . . . 30 . . . 2 1 6 5 . Entropic 23 | . . . . . . . . . . . . . . . . . 16 . . . . . 7 . . Robot Hit Streak 45 | 5 13 8 . 8 24 14 8 23 16 7 17 15 7 12 14 14 11 17 15 7 31 5 33 45 . Robot Miss Streak 8 | . 4 8 . 1 3 2 5 6 6 5 7 4 2 3 2 3 4 1 1 . 3 3 1 1 . Penetration Max 2 | . . . . . . . . 1 . 1 1 1 1 1 1 1 2 1 . . 2 1 1 . . Secondary Targets 37 | . 1 . . . 2 . 1 4 2 . 1 8 . 1 4 3 1 2 . . 3 1 3 . . Max Gunslinging Chain 2 | . 1 . . . 1 . 1 1 1 . 1 2 . 1 2 1 1 1 . . 2 1 1 . . Shots Hit Robots 1333 | 5 70 40 . 18 180 20 22 195 28 18 35 167 29 27 36 42 54 42 11 4 116 14 123 35 2 Core Hits 777 | 2 26 16 . 9 71 7 15 173 32 20 24 80 20 14 14 19 35 14 5 3 68 11 82 15 2 Critical Hits 129 | . 2 1 . . . 1 1 5 2 . 2 17 13 8 7 12 6 5 1 . 9 2 26 9 . Critical Kills 47 | . 1 . . . . . . 1 1 . 1 7 6 3 4 6 3 1 . . 4 1 8 . . Critical Parts Destroyed 67 | . 1 1 . . . . 1 3 1 . 1 7 5 5 3 6 3 2 1 . 3 . 18 6 . Melee Attacks 21 | . . . . . . . . . . . . . . . . . . . . . 6 . 7 2 6 Impact . | . . . . . . . . . . . . . . . . . . . . . . . . . . Slashing 21 | . . . . . . . . . . . . . . . . . . . . . 6 . 7 2 6 Piercing . | . . . . . . . . . . . . . . . . . . . . . . . . . . Sneak Attacks 1 | . . . . . . . . . . . . . . . . . . . . . 1 . . . . Combat Hostiles . | . . . . . . . . . . . . . . . . . . . . . . . . . . Follow-up Attacks . | . . . . . . . . . . . . . . . . . . . . . . . . . . Damage Inflicted 42511 | 45 869 643 . 359 2690 324 403 5047 732 496 1264 4953 1110 912 922 1017 2724 1654 409 138 4934 498 9444 757 167 Guns 32118 | 45 404 230 . 137 1808 251 403 4984 732 496 806 4953 1110 903 922 980 1551 1654 409 138 4437 463 3829 473 . Cannons 2379 | . 454 407 . 222 248 . . . . . . . . . . 37 660 . . . 14 35 190 112 . Explosions 6489 | . . . . . 387 . . . . . 458 . . . . . 513 . . . . . 5131 . . Melee 1088 | . . . . . . . . . . . . . . . . . . . . . 468 . 294 172 154 Ramming 174 | . 11 6 . . 26 31 . 63 . . . . . 9 . . . . . . 15 . . . 13 Kinetic 31282 | 45 404 230 . 137 1766 251 403 4984 732 496 806 4953 1110 903 922 980 757 1654 409 138 4437 463 3829 473 . Thermal 1723 | . 454 407 . 222 511 42 . . . . . . . . . 37 . . . . . . . 50 . Explosive 387 | . . . . . 387 . . . . . . . . . . . . . . . . . . . . Electromagnetic 1932 | . . . . . . . . . . . 458 . . . . . 1173 . . . 14 35 190 62 . Impact . | . . . . . . . . . . . . . . . . . . . . . . . . . . Slashing 1088 | . . . . . . . . . . . . . . . . . . . . . 468 . 294 172 154 Piercing . | . . . . . . . . . . . . . . . . . . . . . . . . . . Entropic 5925 | . . . . . . . . . . . . . . . . . 794 . . . . . 5131 . . Highest Corruption 13 | . . . . . 1 . . . . . 2 6 6 11 11 13 13 2 . . 9 . 10 1 1 Average Corruption 5 | . . . . . 1 . . . . . 1 2 6 8 11 11 13 1 . . 6 . 4 1 1 Corruption Purged . | . . . . . . . . . . . . . . . . . . . . . . . . . . Effects 182 | . . . . . 12 . . . . . . 15 21 14 25 31 1 . . . 44 . 18 . 1 Message Errors 37 | . . . . . 2 . . . . . . 3 6 3 3 3 . . . . 13 . 4 . . Matter Fused 22 | . . . . . . . . . . . . 2 1 1 5 4 . . . . 8 . 1 . . Heat Flow Errors 14 | . . . . . . . . . . . . 1 2 1 1 3 . . . . 5 . 1 . . Energy Discharges 17 | . . . . . 1 . . . . . . 2 2 3 5 1 . . . . 3 . . . . Data Loss (minor) 19 | . . . . . 4 . . . . . . 2 2 1 2 4 . . . . 3 . 1 . . Data Loss (major) 9 | . . . . . . . . . . . . 1 1 . 2 3 1 . . . 1 . . . . Misfires 5 | . . . . . . . . . . . . . 2 1 1 . . . . . 1 . . . . Alerts 1 | . . . . . . . . . . . . . . . 1 . . . . . . . . . . Misdirections 5 | . . . . . . . . . . . . . . . 3 2 . . . . . . . . . Targeting Errors 45 | . . . . . 4 . . . . . . 4 5 4 2 9 . . . . 8 . 8 . 1 Weapon Failures 8 | . . . . . 1 . . . . . . . . . . 2 . . . . 2 . 3 . . Overload Shots 2 | . . . . . . . . . 1 . . . . . . . 1 . . . . . . . . Overflow Damage 514 | . . . . 3 32 . . . . . 19 . . . . . 1 . . . 38 . 421 . . Projectiles 22 | . . . . 3 18 . . . . . . . . . . . 1 . . . . . . . . Explosions 454 | . . . . . 14 . . . . . 19 . . . . . . . . . . . 421 . . Melee 38 | . . . . . . . . . . . . . . . . . . . . . 38 . . . . Knockbacks 1 | . . . . . . 1 . . . . . . . . . . . . . . . . . . . Impact 1 | . . . . . . 1 . . . . . . . . . . . . . . . . . . . Kinetic . | . . . . . . . . . . . . . . . . . . . . . . . . . . Secondary . | . . . . . . . . . . . . . . . . . . . . . . . . . . Self-Inflicted Damage 110 | . . . . . . . . . . . 100 . . 4 . . . . . . . . . . 6 Shots 1 | . . . . . . . . . . . 1 . . . . . . . . . . . . . . Rammed 20 | . 7 1 . . 3 3 . 3 . . . . . 1 . . . . . . 1 . . . 1 Targets Rammed 23 | . 7 1 . . 4 4 . 3 . . . . . 1 . . . . . . 2 . . . 1 Kicked . | . . . . . . . . . . . . . . . . . . . . . . . . . . Crushed 3 | . . . . . 1 1 . . . . . . . . . . . . . . 1 . . . . Highest Temperature 368 | . 368 344 . 275 345 30 69 261 164 12 48 207 307 186 109 178 138 219 91 51 258 262 226 193 . Average Temperature 89 | . 126 153 . 107 122 22 29 64 37 6 16 30 116 77 20 59 29 83 45 30 88 108 115 76 . Received Heat Transfer 3138 | . 174 120 . 108 819 . 18 470 8 . 27 342 . . 126 63 213 54 . 7 48 . 406 99 36 Effects 8 | . 3 2 . 1 1 . . . . . . . . . . . . . . . . 1 . . . Shutdowns 1 | . 1 . . . . . . . . . . . . . . . . . . . . . . . . Energy Bleed 2 | . . 1 . . . . . . . . . . . . . . . . . . . 1 . . . Interference 2 | . 1 . . 1 . . . . . . . . . . . . . . . . . . . . . Short Circuit 2 | . 1 . . . 1 . . . . . . . . . . . . . . . . . . . . Damage (minor) 1 | . . 1 . . . . . . . . . . . . . . . . . . . . . . . Siege Activations 23 | . . . . . . . . . . . . 4 . . 3 3 2 2 . . 5 . 3 1 . Total Turns 350 | . . . . . . . . . . . . 72 . . 27 28 12 34 . . 77 . 84 16 . Longest Duration 39 | . . . . . . . . . . . . 35 . . 13 20 6 22 . . 26 . 39 16 . Robots Corrupted 5 | . . . . . . . . . . . . . . . . . 5 . . . . . . . . Combat Hostiles 5 | . . . . . . . . . . . . . . . . . 5 . . . . . . . . Parts Fried 14 | . . . . . . . . 1 . . . . . . . . 13 . . . . . . . . Impact Corruptions . | . . . . . . . . . . . . . . . . . . . . . . . . . . Robots Melted 1 | . . . . . 1 . . . . . . . . . . . . . . . . . . . . Combat Hostiles 1 | . . . . . 1 . . . . . . . . . . . . . . . . . . . . Parts Melted 6 | . 1 . . . 3 . . . . . . . . . . . 2 . . . . . . . . Heat Transferred 3981 | . 777 703 . 370 1946 148 . . . . . . . . . 37 . . . . . . . . . Parts Sabotaged . | . . . . . . . . . . . . . . . . . . . . . . . . . . Parts Stolen . | . . . . . . . . . . . . . . . . . . . . . . . . . . Parts Stripped . | . . . . . . . . . . . . . . . . . . . . . . . . . . Power Chain Reactions 1 | . . . . . . . . . . . . . . . . . 1 . . . . . . . . Missiles Intercepted . | . . . . . . . . . . . . . . . . . . . . . . . . . . Alert | -11 -10 -10 -10 -9 -8 -7 -6 -6 -6 -6 -6 -5 -5 -5 -5 -5 -5 -4 -4 -3 -3 -2 -2 -1 -1 ------- Run | Scr Mat Min Exi Min Mat Fac Fac Ext Cet Arc Hub Fac Was Fac Upp Upp War Pro Fac Res Tes Res Qua Acc Com Peak Influence 1528 | 5 196 170 . 200 440 262 95 1047 1182 662 1004 898 324 354 . . . . 232 172 1074 994 1528 1221 930 Initial 916 | . 3 15 . . . 200 30 46 608 464 231 471 314 92 . . . . . 121 96 603 446 916 780 Average 377 | 2 74 88 . 162 187 209 71 176 858 620 648 600 286 224 . . . . 168 136 434 770 977 943 831 Maximum Alert Level 4 | . . . . 1 2 1 . 3 4 2 3 3 1 1 . . . . 1 . 3 3 4 4 3 Low Security (%) 40 | 100 100 100 . 33 50 12 100 67 . . . . 14 43 . . . . 81 100 17 . . . . Level 1 24 | . . . . 66 44 87 . 26 . . 22 16 85 56 . . . . 18 . 40 . . . . Level 2 14 | . . . . . 5 . . 2 26 100 34 52 . . . . . . . . 23 26 39 . . Level 3 16 | . . . . . . . . 3 62 . 42 30 . . . . . . . . 18 73 12 89 100 Level 4 3 | . . . . . . . . . 10 . . . . . . . . . . . . . 48 10 . Level 5 . | . . . . . . . . . . . . . . . . . . . . . . . . . . High Security . | . . . . . . . . . . . . . . . . . . . . . . . . . . Max Security . | . . . . . . . . . . . . . . . . . . . . . . . . . . Squads Dispatched 52 | . 2 . . . 4 . 1 4 . . 4 7 . 4 . . . . . . 12 1 10 2 1 Investigation 7 | . 1 . . . 2 . . 1 . . 1 . . 1 . . . . . . . . 1 . . Extermination 8 | . . . . . . . . . . . . 1 . 1 . . . . . . 4 . 2 . . Reinforcement 23 | . 1 . . . 2 . 1 3 . . 2 4 . . . . . . . . 3 1 5 . 1 Assault 5 | . . . . . . . . . . . . 1 . . . . . . . . 2 . 2 . . Garrison 9 | . . . . . . . . . . . 1 1 . 2 . . . . . . 3 . . 2 . Intercept . | . . . . . . . . . . . . . . . . . . . . . . . . . . Construction Impeded 3 | . . . . . . . . 1 . . 1 1 . . . . . . . . . . . . . Haulers Reinforced 2 | . . . . . . . . . . . . 1 . . . . . . . . . . 1 . . Stealth | -11 -10 -10 -10 -9 -8 -7 -6 -6 -6 -6 -6 -5 -5 -5 -5 -5 -5 -4 -4 -3 -3 -2 -2 -1 -1 --------- Run | Scr Mat Min Exi Min Mat Fac Fac Ext Cet Arc Hub Fac Was Fac Upp Upp War Pro Fac Res Tes Res Qua Acc Com Distress Signals 17 | . 1 . . . 1 . 1 1 2 1 2 1 . 1 . . 1 . . . 1 1 3 . . Communications Jammed 1 | . . . . . . . . . . . . 1 . . . . . . . . . . . . . Distress Signals 1 | . . . . . . . . . . . . 1 . . . . . . . . . . . . . Times Spotted 478 | . 25 11 . 6 31 2 5 53 19 8 18 39 . 10 9 10 77 6 2 1 48 15 44 24 15 Peak Tracking Total 19 | . 6 3 . 3 5 2 4 9 5 2 7 5 . 8 4 5 19 3 1 1 6 7 10 12 11 Tactical Retreats 20 | . . 2 . . . . 1 3 . . . 1 . 1 1 1 2 . . . . . 1 6 1 Traps | -11 -10 -10 -10 -9 -8 -7 -6 -6 -6 -6 -6 -5 -5 -5 -5 -5 -5 -4 -4 -3 -3 -2 -2 -1 -1 ------- Run | Scr Mat Min Exi Min Mat Fac Fac Ext Cet Arc Hub Fac Was Fac Upp Upp War Pro Fac Res Tes Res Qua Acc Com Traps Triggered 12 | . . . . . 5 . . . . . 1 2 . 1 . . . . . . 2 . 1 . . Indirectly . | . . . . . . . . . . . . . . . . . . . . . . . . . . Trap Hack Attempts . | . . . . . . . . . . . . . . . . . . . . . . . . . . Triggered . | . . . . . . . . . . . . . . . . . . . . . . . . . . Disarmed . | . . . . . . . . . . . . . . . . . . . . . . . . . . Reprogrammed . | . . . . . . . . . . . . . . . . . . . . . . . . . . Reused . | . . . . . . . . . . . . . . . . . . . . . . . . . . Traps Extracted . | . . . . . . . . . . . . . . . . . . . . . . . . . . Installed 2 | . . . . 2 . . . . . . . . . . . . . . . . . . . . . Triggered 12 | . . . . . . . . . . . . . . . . . 12 . . . . . . . . Machines | -11 -10 -10 -10 -9 -8 -7 -6 -6 -6 -6 -6 -5 -5 -5 -5 -5 -5 -4 -4 -3 -3 -2 -2 -1 -1 ---------- Run | Scr Mat Min Exi Min Mat Fac Fac Ext Cet Arc Hub Fac Was Fac Upp Upp War Pro Fac Res Tes Res Qua Acc Com Machines Disabled 44 | . 1 . . 1 . . . 5 1 1 3 6 . 2 . 1 1 . 3 . 9 . 10 . . Max in Single Turn 3 | . 1 . . 1 . . . 1 1 1 1 1 . 1 . 1 1 . 3 . 3 . 2 . . Garrison Access 1 | . . . . . . . . . . . . . . . . . . . . . . 1 . . . Network Hub 1 | . . . . . . . . . . . 1 . . . . . . . . . . . . . . Energy Cycler 1 | . . . . . . . . 1 . . . . . . . . . . . . . . . . . Machines Sabotaged . | . . . . . . . . . . . . . . . . . . . . . . . . . . Garrisons Compromised . | . . . . . . . . . . . . . . . . . . . . . . . . . . Overloaded Fab Kills . | . . . . . . . . . . . . . . . . . . . . . . . . . . Fab Network Shutdowns . | . . . . . . . . . . . . . . . . . . . . . . . . . . Hacking | -11 -10 -10 -10 -9 -8 -7 -6 -6 -6 -6 -6 -5 -5 -5 -5 -5 -5 -4 -4 -3 -3 -2 -2 -1 -1 --------- Run | Scr Mat Min Exi Min Mat Fac Fac Ext Cet Arc Hub Fac Was Fac Upp Upp War Pro Fac Res Tes Res Qua Acc Com Machines Accessed 38 | . 7 . 1 . 3 . . 9 1 . . 4 . 1 . . 1 . 1 1 3 1 1 4 . Terminals 28 | . 6 . . . 2 . . 9 1 . . 3 . 1 . . . . 1 . 1 . . 4 . Fabricators . | . . . . . . . . . . . . . . . . . . . . . . . . . . Repair Stations 4 | . 1 . . . . . . . . . . . . . . . . . . . 2 . 1 . . Recycling Units 1 | . . . . . 1 . . . . . . . . . . . . . . . . . . . . Scanalyzers 2 | . . . . . . . . . . . . 1 . . . . . . . . . 1 . . . Garrison Access 1 | . . . . . . . . . . . . . . . . . . . . 1 . . . . . Total Hacks 108 | . 19 . 1 . 6 . . 26 4 . . 18 . 5 . . 1 . 4 3 5 2 6 8 . Successful 49 | . 9 . 1 . 4 . . 14 . . . 8 . 1 . . 1 . 1 . 2 2 2 4 . Failed 59 | . 10 . . . 2 . . 12 4 . . 10 . 4 . . . . 3 3 3 . 4 4 . Catastrophic 14 | . 2 . . . . . . 1 . . . 3 . 1 . . . . . 2 1 . 3 1 . Database Lockouts . | . . . . . . . . . . . . . . . . . . . . . . . . . . Manual 39 | . 13 . . . 9 . . 12 1 . . 4 . . . . . . . . . . . . . Terminals 78 | . 13 . . . 5 . . 26 4 . . 12 . 5 . . . . 4 . 1 . . 8 . Fabricators . | . . . . . . . . . . . . . . . . . . . . . . . . . . Repair Stations 16 | . 6 . . . . . . . . . . . . . . . . . . . 4 . 6 . . Recycling Units 1 | . . . . . 1 . . . . . . . . . . . . . . . . . . . . Scanalyzers 8 | . . . . . . . . . . . . 6 . . . . . . . . . 2 . . . Garrison Access 3 | . . . . . . . . . . . . . . . . . . . . 3 . . . . . Terminal Hacks 27 | . 2 . 1 . 3 . . 12 . . . 2 . 1 . . 1 . 1 . . . . 4 . Record 1 | . . . 1 . . . . . . . . . . . . . . . . . . . . . . Robot Analysis 6 | . 2 . . . 3 . . 1 . . . . . . . . . . . . . . . . . Prototype ID Bank 1 | . . . . . . . . 1 . . . . . . . . . . . . . . . . . Open Door 10 | . . . . . . . . 6 . . . . . . . . 1 . . . . . . 3 . Branch Access Points 2 | . . . . . . . . . . . . . . 1 . . . . 1 . . . . . . Terminal Index 2 | . . . . . . . . 1 . . . . . . . . . . . . . . . 1 . Unreport Threat 5 | . . . . . . . . 3 . . . 2 . . . . . . . . . . . . . Fabricator Hacks . | . . . . . . . . . . . . . . . . . . . . . . . . . . Repair Station Hacks 10 | . 6 . . . . . . . . . . . . . . . . . . . 2 . 2 . . Scan Component 6 | . 3 . . . . . . . . . . . . . . . . . . . 1 . 2 . . Repair 4 | . 3 . . . . . . . . . . . . . . . . . . . 1 . . . . Recycling Unit Hacks . | . . . . . . . . . . . . . . . . . . . . . . . . . . Scanalyzer 7 | . . . . . . . . . . . . 5 . . . . . . . . . 2 . . . Insert Component 4 | . . . . . . . . . . . . 2 . . . . . . . . . 2 . . . Analyze 3 | . . . . . . . . . . . . 3 . . . . . . . . . . . . . Garrison Access Hacks . | . . . . . . . . . . . . . . . . . . . . . . . . . . Unauthorized Hacks 5 | . 1 . . . 1 . . 2 . . . 1 . . . . . . . . . . . . . Terminals 4 | . 1 . . . . . . 2 . . . 1 . . . . . . . . . . . . . Botnet 4 | . 1 . . . . . . 2 . . . 1 . . . . . . . . . . . . . Fabricators . | . . . . . . . . . . . . . . . . . . . . . . . . . . Repair Stations . | . . . . . . . . . . . . . . . . . . . . . . . . . . Recycling Units 1 | . . . . . 1 . . . . . . . . . . . . . . . . . . . . Tunnel 1 | . . . . . 1 . . . . . . . . . . . . . . . . . . . . Scanalyzers . | . . . . . . . . . . . . . . . . . . . . . . . . . . Garrison Access . | . . . . . . . . . . . . . . . . . . . . . . . . . . Data Cores Recovered . | . . . . . . . . . . . . . . . . . . . . . . . . . . Used . | . . . . . . . . . . . . . . . . . . . . . . . . . . Hacking Detections 28 | . 6 . . . 2 . . 5 2 . . 4 . 1 . . . . 1 1 3 . 1 2 . Full Trace Events 6 | . 2 . . . 1 . . 1 . . . . . 1 . . . . . . . . 1 . . Feedback Events . | . . . . . . . . . . . . . . . . . . . . . . . . . . Feedback Blocked . | . . . . . . . . . . . . . . . . . . . . . . . . . . Robot Schematics Acquired . | . . . . . . . . . . . . . . . . . . . . . . . . . . Robots Built . | . . . . . . . . . . . . . . . . . . . . . . . . . . Matter . | . . . . . . . . . . . . . . . . . . . . . . . . . . Time . | . . . . . . . . . . . . . . . . . . . . . . . . . . Total Robot Build Rating . | . . . . . . . . . . . . . . . . . . . . . . . . . . Part Schematics Acquired . | . . . . . . . . . . . . . . . . . . . . . . . . . . Parts Built . | . . . . . . . . . . . . . . . . . . . . . . . . . . Matter . | . . . . . . . . . . . . . . . . . . . . . . . . . . Time . | . . . . . . . . . . . . . . . . . . . . . . . . . . Total Part Build Rating . | . . . . . . . . . . . . . . . . . . . . . . . . . . Parts Repaired 4 | . 3 . . . . . . . . . . . . . . . . . . . 1 . . . . Time 102 | . 94 . . . . . . . . . . . . . . . . . . . 8 . . . . Parts Recycled . | . . . . . . . . . . . . . . . . . . . . . . . . . . Recycled Matter . | . . . . . . . . . . . . . . . . . . . . . . . . . . Retrieved Matter . | . . . . . . . . . . . . . . . . . . . . . . . . . . Retrieved Components . | . . . . . . . . . . . . . . . . . . . . . . . . . . Parts Scanalyzed 1 | . . . . . . . . . . . . 1 . . . . . . . . . . . . . Part Schematics Acquired . | . . . . . . . . . . . . . . . . . . . . . . . . . . Parts Damaged . | . . . . . . . . . . . . . . . . . . . . . . . . . . Bothacking | -11 -10 -10 -10 -9 -8 -7 -6 -6 -6 -6 -6 -5 -5 -5 -5 -5 -5 -4 -4 -3 -3 -2 -2 -1 -1 ------------ Run | Scr Mat Min Exi Min Mat Fac Fac Ext Cet Arc Hub Fac Was Fac Upp Upp War Pro Fac Res Tes Res Qua Acc Com Used RIF Installer . | . . . . . . . . . . . . . . . . . . . . . . . . . . Robots Hacked . | . . . . . . . . . . . . . . . . . . . . . . . . . . Non-combat . | . . . . . . . . . . . . . . . . . . . . . . . . . . Combat . | . . . . . . . . . . . . . . . . . . . . . . . . . . Robot Hacks Applied . | . . . . . . . . . . . . . . . . . . . . . . . . . . Relay Couplers Released 1 | . . . . . . . . . . . . . . . . . . . . . . 1 . . . Machine Destruction 1 | . . . . . . . . . . . . . . . . . . . . . . 1 . . . Robots Rewired 20 | . . . . . . 2 . 17 . . . . . . . . . . . . 1 . . . . Allies Hacked 2 | . . . . . . . . . . . . . . . . . . . . . 1 . 1 . . Hacks Repelled . | . . . . . . . . . . . . . . . . . . . . . . . . . . Allies | -11 -10 -10 -10 -9 -8 -7 -6 -6 -6 -6 -6 -5 -5 -5 -5 -5 -5 -4 -4 -3 -3 -2 -2 -1 -1 -------- Run | Scr Mat Min Exi Min Mat Fac Fac Ext Cet Arc Hub Fac Was Fac Upp Upp War Pro Fac Res Tes Res Qua Acc Com Total Allies 56 | . . . . . . 2 . 28 5 . . . 20 . . . . . . . 1 . . . . Largest Group 20 | . . . . . . 2 1 17 7 5 4 . 20 12 . . . . . . 1 1 1 . . Highest-Rated Group 797 | . . . . . . 64 32 643 583 457 307 . 797 420 . . . . . . 90 90 90 . . Highest-Rated Ally 156 | . . . . . . 32 32 156 150 150 94 . 50 46 . . . . . . 90 90 90 . . Total Orders 12 | . . . . . . . . . . . . . . . . . 1 . . . . 9 2 . . STAY 1 | . . . . . . . . . . . . . . . . . 1 . . . . . . . . FOLLOW 1 | . . . . . . . . . . . . . . . . . . . . . . 1 . . . EXPLORE 5 | . . . . . . . . . . . . . . . . . . . . . . 4 1 . . RETURN 5 | . . . . . . . . . . . . . . . . . . . . . . 4 1 . . Ally Attacks 528 | . . . . . . 3 3 167 75 13 46 . . 14 . . . . . . 133 49 25 . . Total Damage 15850 | . . . . . . 133 137 3986 1647 552 1355 . . 255 . . . . . . 5116 1767 902 . . Kills 117 | . . . . . . 2 . 36 17 3 12 . . . . . . . . . 29 13 5 . . Allies Corrupted . | . . . . . . . . . . . . . . . . . . . . . . . . . . Allies Melted . | . . . . . . . . . . . . . . . . . . . . . . . . . . Intel | -11 -10 -10 -10 -9 -8 -7 -6 -6 -6 -6 -6 -5 -5 -5 -5 -5 -5 -4 -4 -3 -3 -2 -2 -1 -1 ------- Run | Scr Mat Min Exi Min Mat Fac Fac Ext Cet Arc Hub Fac Was Fac Upp Upp War Pro Fac Res Tes Res Qua Acc Com Robot Analysis Total 6 | . 2 . . . 3 . . 1 . . . . . . . . . . . . . . . . . Derelict Logs Recovered 6 | . . 3 . 1 . . . . . . . . . . . 1 . 1 . . . . . . . Drone Launches 20 | . . . . . . . . . . . . . . . . . 10 . . . . 8 2 . . Drone Recoveries 17 | . . . . . . . . . . . . . . . . . 7 . . . . 8 2 . . Exploration | -11 -10 -10 -10 -9 -8 -7 -6 -6 -6 -6 -6 -5 -5 -5 -5 -5 -5 -4 -4 -3 -3 -2 -2 -1 -1 ------------- Run | Scr Mat Min Exi Min Mat Fac Fac Ext Cet Arc Hub Fac Was Fac Upp Upp War Pro Fac Res Tes Res Qua Acc Com Turns Passed 15383 | 91 1221 724 405 401 1131 457 249 1506 361 146 183 1191 470 285 561 482 1252 427 229 194 1596 547 704 351 219 Spaces Moved 8077 | 62 570 370 243 221 395 183 134 697 169 70 76 607 344 187 384 292 722 218 114 98 777 308 288 361 187 Core 140 | 27 . . . . . . . . . . . . . . . . . . . . . . . 100 13 Treads 5617 | 35 570 370 243 221 395 183 134 697 169 70 76 336 . . 1 98 146 218 114 98 777 308 288 70 . Legs . | . . . . . . . . . . . . . . . . . . . . . . . . . . Wheels 1955 | . . . . . . . . . . . . 271 344 187 383 194 576 . . . . . . . . Hover 39 | . . . . . . . . . . . . . . . . . . . . . . . . . 39 Flight 326 | . . . . . . . . . . . . . . . . . . . . . . . . 191 135 Fastest Speed 30 | 50 160 160 160 160 180 180 160 160 160 160 160 120 120 120 120 120 110 160 185 163 152 150 150 32 30 Average Speed 145 | 112 160 160 166 160 192 180 160 160 160 160 160 142 120 128 129 134 128 167 185 180 158 153 150 62 39 Slowest Speed 205 | 160 160 160 180 160 200 180 160 160 180 160 160 160 130 130 180 160 160 180 185 185 180 155 152 205 60 Overloaded Moves 85 | . . . . . . . . . . . . . . . . . . . . . . . . 4 81 Propulsion Burnouts . | . . . . . . . . . . . . . . . . . . . . . . . . . . Robots Hopped 11 | . . . . . . . . . . . . . . . . . . . . . . . . 7 4 Cave-ins Triggered . | . . . . . . . . . . . . . . . . . . . . . . . . . . Exploration Rate (%) 41 | 5 73 48 55 52 34 8 5 85 67 76 13 25 96 10 65 51 66 50 5 5 77 25 56 11 9 Regions Visited 25 Branch Regions 14 Pre-discovered Areas 3 | . . 1 1 . 1 . . . . . . . . . . . . . . . . . . . . Known Exits Taken 8 | . . . 1 1 . . . . . . . . . 1 . . . . . 1 1 1 1 1 . Unknown Exits Taken 15 | 1 1 1 . . 1 1 1 1 1 1 1 . . . 1 1 1 1 1 . . . . . . Scrap Searched 4 | . . . . 1 . . . . . . . . . . 1 1 . 1 . . . . . . . Spaces Dug 31 | . . . . . . . . . . . . 9 18 . . . . . . 3 1 . . . . Terrain Destroyed 608 | . . . . . 21 . . 2 1 . 173 80 47 22 21 8 16 29 38 3 67 2 78 . . Melee . | . . . . . . . . . . . . . . . . . . . . . . . . . . Projectile 304 | . . . . . . . . 2 1 . 4 80 47 8 21 8 16 29 11 3 67 2 5 . . AOE 304 | . . . . . 21 . . . . . 169 . . 14 . . . . 27 . . . 73 . . Terrain Rammed . | . . . . . . . . . . . . . . . . . . . . . . . . . . Walls Destroyed . | . . . . . . . . . . . . . . . . . . . . . . . . . . Machines Disabled . | . . . . . . . . . . . . . . . . . . . . . . . . . . Actions | -11 -10 -10 -10 -9 -8 -7 -6 -6 -6 -6 -6 -5 -5 -5 -5 -5 -5 -4 -4 -3 -3 -2 -2 -1 -1 --------- Run | Scr Mat Min Exi Min Mat Fac Fac Ext Cet Arc Hub Fac Was Fac Upp Upp War Pro Fac Res Tes Res Qua Acc Com Total 10283 | 78 770 438 246 246 571 286 158 942 240 89 108 759 376 202 413 334 975 248 122 110 1032 367 432 426 315 Wait 774 | . 105 16 . 7 18 3 3 40 28 3 21 43 . . 15 18 129 15 . . 96 34 36 26 118 Move 8031 | 61 569 369 242 220 394 182 133 696 168 69 75 607 343 186 383 291 721 217 113 97 776 307 287 346 179 Hop 11 | . . . . . . . . . . . . . . . . . . . . . . . . 7 4 Pick Up 143 | 7 10 3 . 3 19 11 7 10 9 1 . 8 4 . . 1 15 1 1 4 18 2 7 2 . Fast Attach 108 | 2 3 4 . . 7 3 . 7 2 2 . 10 2 1 1 3 14 . . 1 27 4 6 6 3 Attach 97 | 5 4 . . . 18 3 2 3 6 1 . 6 2 1 . 1 12 1 2 3 7 4 9 5 2 Detach 16 | . . . . . 3 1 . . . . . . . . . . 2 . . . 2 2 1 3 2 Swap 57 | . 1 2 2 1 3 1 . 11 3 3 . 2 2 . . . 15 1 1 . 8 . 1 . . Drop 176 | . 3 6 2 1 4 7 5 22 14 4 . 10 7 1 1 . 22 . 1 1 37 6 16 6 . Fire 674 | 3 68 37 . 12 101 13 8 63 10 6 12 73 16 12 13 20 45 13 4 4 48 8 62 23 . Melee 21 | . . . . . . . . . . . . . . . . . . . . . 6 . 7 2 6 Ram 2 | . . . . . . . . . . . . . . 1 . . . . . . . . . . 1 Kick . | . . . . . . . . . . . . . . . . . . . . . . . . . . Crush 21 | . 7 1 . . 4 4 . 3 . . . . . . . . . . . . 2 . . . . Escape Stasis 1 | . . . . . . . . . . . . . . . . . . . . . 1 . . . . Rewire 149 | . . . . . . 58 . 87 . . . . . . . . . . . . 4 . . . . Trap 2 | . . . . 2 . . . . . . . . . . . . . . . . . . . . . Miscellaneous . | . . . . . . . . . . . . . . . . . . . . . . . . . . Route ------- -11/Scrapyard -10/Materials (discovered 5 exits: [*Mat x3] / [*Min x2]) -10/Mines -10/Exiles (discovered 2 exits: *Min x2) -9/Mines (discovered 2 exits: *Mat x2) -8/Materials -7/Factory -6/Factory -6/Extension (discovered 2 exits: *Fac / *Cet) -6/Cetus (discovered 2 exits: *Fac / [*Arc]) -6/Archives (discovered 2 exits: *Fac / [*Hub]) -6/Hub_04(d) -5/Factory -5/Waste -5/Factory (discovered 2 exits: *Upp x2) -5/Upper Caves -5/Upper Caves (discovered 2 exits: *Fac / *War) -5/Warlord -4/Proximity Caves -4/Factory (discovered 3 exits: *Res / Upp x2) -3/Research -3/Testing -2/Research -2/Quarantine -1/Access -1/Command History --------- Turn | Location | Event 8 | -11/Scrapyard | Discovered new exit (range 14) 92 | -11/Scrapyard | Entered Materials 302 | -10/Materials | Build established: Mutant 417 | -10/Materials | Discovered new exit (range 12) 501 | -10/Materials | Discovered new exit (range 7) 617 | -10/Materials | Discovered new exit (range 16) 769 | -10/Materials | Discovered new exit (range 9) 936 | -10/Materials | Repaired Broken Lgt. Treads 969 | -10/Materials | Repaired Particle Cannon 997 | -10/Materials | Repaired Lgt. Assault Rifle 1184 | -10/Materials | Discovered new exit (range 8) 1313 | -10/Materials | Entered Mines 1326 | -10/Mines | Learned Materials terminal intel 1456 | -10/Mines | Assembled infested the area 1461 | -10/Mines | Assisted by a Guerilla fighting off Assembled 1535 | -10/Mines | Core integrity fell below 50% 1590 | -10/Mines | A weapon hastily lodged in a ceiling crevice suddenly fell to the ground 1615 | -10/Mines | Learned location of Recycling (-7) 1666 | -10/Mines | Build established: Scavenger-Mutant 1917 | -10/Mines | Deemed a non-threat by the Exiles lab entrance 1919 | -10/Mines | Discovered new exit (range 5) 2037 | -10/Mines | Entered Exiles 2038 | -10/Exiles | Identified exit to Mines 2076 | -10/Exiles | Met 8R-AWN 2103 | -10/Exiles | Met EX-HEX 2162 | -10/Exiles | Met EX-DEC 2189 | -10/Exiles | Learned location of Zion (-7) 2442 | -10/Exiles | Entered Mines 2537 | -9/Mines | Met a Derelict bent on vengeance 2604 | -9/Mines | Identified exit to Materials 2692 | -9/Mines | Found a hidden stash of uninstalled traps 2834 | -9/Mines | Discovered exit to Materials (range 6) 2843 | -9/Mines | Entered Materials 2843 | -8/Materials | Evolved 4 slots: Utility x3, Weapon x1 2844 | -8/Materials | Loaded intel: 12 terminal locations 3279 | -8/Materials | Lost 4 parts (2u2w) 3676 | -8/Materials | Lost 4 parts (1p1n2w) 3861 | -8/Materials | Discovered new exit (range 8) 3974 | -8/Materials | Entered Factory 3974 | -7/Factory | Evolved 2 slots: Propulsion x1, Weapon x1 3996 | -7/Factory | Build established: Scavenger-Tank 4394 | -7/Factory | Discovered new exit (range 15) 4431 | -7/Factory | Entered another Factory area 4431 | -6/Factory | Accompanied by 1 ally 4431 | -6/Factory | Evolved 2 slots: Propulsion x1, Utility x1 4645 | -6/Factory | Discovered new exit (range 12) 4680 | -6/Factory | Entered Extension 4792 | -6/Extension | Rescued a captive Derelict 4793 | -6/Extension | Rescued a captive Derelict 4943 | -6/Extension | Rescued a captive Derelict 4944 | -6/Extension | Rescued a captive Derelict 5005 | -6/Extension | Disrupted transfer network 5599 | -6/Extension | Spotted B-75 Beast 5622 | -6/Extension | Destroyed B-75 Beast 5647 | -6/Extension | Spotted B-75 Beast 5674 | -6/Extension | Destroyed B-75 Beast 5762 | -6/Extension | Rescued a captive Derelict 5763 | -6/Extension | Rescued a captive Derelict 6000 | -6/Extension | Rescued a captive Derelict 6004 | -6/Extension | Rescued a captive Derelict 6022 | -6/Extension | Rescued A7 6022 | -6/Extension | Rescued a captive Derelict 6109 | -6/Extension | Energy Cycler disabled 6109 | -6/Extension | Rescued a captive Derelict 6139 | -6/Extension | Disrupted transfer network 6162 | -6/Extension | Discovered new exit (range 10) 6167 | -6/Extension | Discovered new exit (range 6) 6186 | -6/Extension | Entered Cetus 6186 | -6/Cetus | Accompanied by 5 allies (A7) 6191 | -6/Cetus | Acquired a Cetus Manufacturing Module code from A7 6208 | -6/Cetus | Spotted Cetus Guard 6208 | -6/Cetus | Spotted Cetus Guard 6212 | -6/Cetus | Allies destroyed Cetus Guard 6212 | -6/Cetus | Spotted Cetus Guard 6215 | -6/Cetus | Spotted Cetus Guard 6224 | -6/Cetus | Allies destroyed Cetus Guard 6231 | -6/Cetus | Destroyed Cetus Guard 6232 | -6/Cetus | Allies destroyed Cetus Guard 6321 | -6/Cetus | Started Cetus Manufacturing Module 6339 | -6/Cetus | Escorted A7 to Cetus Mainframe 6346 | -6/Cetus | Manufactured an Enhanced Grunt 6371 | -6/Cetus | Manufactured an Enhanced Grunt 6378 | -6/Cetus | Discovered new exit (range 15) 6396 | -6/Cetus | Manufactured an Enhanced Grunt 6410 | -6/Cetus | Spotted Cetus Guard 6410 | -6/Cetus | Spotted Cetus Guard 6414 | -6/Cetus | Spotted Cetus Guard 6419 | -6/Cetus | Allies destroyed Cetus Guard 6419 | -6/Cetus | Allies destroyed Cetus Guard 6420 | -6/Cetus | Spotted Cetus Guard 6421 | -6/Cetus | Manufactured an Enhanced Grunt 6424 | -6/Cetus | Allies destroyed Cetus Guard 6430 | -6/Cetus | Allies destroyed Cetus Guard 6434 | -6/Cetus | Discovered new exit (range 16) 6446 | -6/Cetus | Manufactured an Enhanced Grunt 6450 | -6/Cetus | Met Revision 17 6547 | -6/Cetus | Entered Archives 6547 | -6/Archives | Accompanied by 5 allies (A7) 6552 | -6/Archives | Received a hacking code to weaken MAIN.C 6617 | -6/Archives | Discovered new exit (range 15) 6658 | -6/Archives | Discovered new exit (range 15) 6693 | -6/Archives | Entered Hub_04(d) 6693 | -6/Hub_04(d) | Accompanied by 4 allies 6718 | -6/Hub_04(d) | Discovered new exit (range 12) 6746 | -6/Hub_04(d) | Garrison activated, responded to threat 6848 | -6/Hub_04(d) | Network Hub disabled 6872 | -6/Hub_04(d) | Spotted Lightning 6876 | -6/Hub_04(d) | Spotted Lightning 6876 | -6/Hub_04(d) | Entered Factory 6876 | -5/Factory | Evolved 2 slots: Utility x2 7176 | -5/Factory | First assault squad dispatched 7415 | -5/Factory | Found Prototype Processor 7426 | -5/Factory | Identified Exp. Signal Interpreter 7728 | -5/Factory | Lost 5 parts (4u1w) 7769 | -5/Factory | Garrison activated, responded to threat 8067 | -5/Factory | Sucked down chute 8067 | -5/Factory | Entered Waste 8068 | -5/Waste | Joined by Warlord forces that had cleared the area 8075 | -5/Waste | Found Gamma Bomb Array 8238 | -5/Waste | Found Gamma Bomb Array 8378 | -5/Waste | Discovered new exit (range 13) 8537 | -5/Waste | Entered Factory 8537 | -5/Factory | Accompanied by 12 allies 8666 | -5/Factory | Garrison activated, responded to threat 8701 | -5/Factory | Identified exit to Upper Caves 8797 | -5/Factory | System corruption reached 10% 8822 | -5/Factory | Entered Upper Caves 9346 | -5/Upper Caves | Discovered new exit (range 9) 9383 | -5/Upper Caves | Entered another Upper Caves area 9422 | -5/Upper Caves | Discovered new exit (range 7) 9448 | -5/Upper Caves | Attracted the attention of an 0b10 checkpoint 9501 | -5/Upper Caves | Learned Factory emergency access door positions 9674 | -5/Upper Caves | Lost 3 parts (1u2w) 9771 | -5/Upper Caves | Found Alien Artifact 9771 | -5/Upper Caves | Identified Dimensional Node Initializer 9771 | -5/Upper Caves | Initialized slip node 9851 | -5/Upper Caves | Discovered new exit (range 11) 9865 | -5/Upper Caves | Entered Warlord 9905 | -5/Warlord | System corruption cleaned by Quarantine Array 10121 | -5/Warlord | Found Prototype Device 10121 | -5/Warlord | Identified Minesniffer Drone Bay 10125 | -5/Warlord | Found Minesniffer Drone Bay 10128 | -5/Warlord | Found Minesniffer Drone Bay 10149 | -5/Warlord | Build established: Scavenger-Mutant 10242 | -5/Warlord | Visited the Vortex Lab 10242 | -5/Warlord | Warlord's base attacked by MAIN.C 10252 | -5/Warlord | Found Prototype Energy Gun 10255 | -5/Warlord | Found Prototype Energy Gun 10262 | -5/Warlord | Found Prototype Launcher 10345 | -5/Warlord | Met Warlord 10356 | -5/Warlord | Identified Vortex Shotgun (x2) 10367 | -5/Warlord | Found Prototype Reactor 10373 | -5/Warlord | Found Prototype Device 10373 | -5/Warlord | Identified Exp. Cloaking Device 10385 | -5/Warlord | Found Prototype Hackware 10585 | -5/Warlord | Warlord forces counterattacked 10588 | -5/Warlord | Spotted Striker 10594 | -5/Warlord | Spotted Executioner 10597 | -5/Warlord | Destroyed Striker 10605 | -5/Warlord | Destroyed Executioner 10647 | -5/Warlord | Destroyed 7 combat bots 10683 | -5/Warlord | Spotted Striker 10692 | -5/Warlord | Spotted Executioner 10709 | -5/Warlord | Destroyed Executioner 10719 | -5/Warlord | Found Prototype Device 10723 | -5/Warlord | Spotted Striker 10730 | -5/Warlord | Identified Adv. Kinecellerator 10764 | -5/Warlord | Spotted Executioner 10771 | -5/Warlord | Core integrity fell below 50% 10804 | -5/Warlord | Discovered new exit (range 14) 10842 | -5/Warlord | Spotted Striker 10917 | -5/Warlord | Warlord base infiltrated, sounded retreat 10963 | -5/Warlord | Spotted B-75 Beast 11042 | -5/Warlord | Spotted Executioner 11042 | -5/Warlord | Spotted Striker 11042 | -5/Warlord | Spotted Executioner 11043 | -5/Warlord | P-70 Sage assimilated allied 2V-5V3(c) 11044 | -5/Warlord | P-70 Sage assimilated allied DH-7QA(M) 11045 | -5/Warlord | Destroyed Executioner 11054 | -5/Warlord | Found Adv. Kinecellerator 11074 | -5/Warlord | Found Prototype Slashing Weapon 11080 | -5/Warlord | Found Prototype Processor 11081 | -5/Warlord | Identified Exp. Melee Analysis Suite 11096 | -5/Warlord | Found Prototype Processor 11096 | -5/Warlord | Identified Exp. Core Analyzer 11099 | -5/Warlord | Found Prototype Processor 11099 | -5/Warlord | Identified Exp. Targeting Computer 11114 | -5/Warlord | Identified Particle Cleaver 11117 | -5/Warlord | Entered Proximity Caves 11117 | -4/Proximity Caves | Spotted B-86 Titan 11140 | -4/Proximity Caves | Destroyed B-86 Titan 11233 | -4/Proximity Caves | Build established: Scavenger-Gunner 11501 | -4/Proximity Caves | Discovered new exit (range 16) 11544 | -4/Proximity Caves | Entered Factory 11544 | -4/Factory | Evolved 2 slots: Power x1, Utility x1 11545 | -4/Factory | Identified Vortex Chain Reactor 11649 | -4/Factory | Identified Ghost Barrier 11651 | -4/Factory | Identified exit to Upper Caves 11729 | -4/Factory | Discovered new exit (range 12) 11773 | -4/Factory | Entered Research 11773 | -3/Research | Evolved 2 slots: Utility x2 11774 | -3/Research | Identified exit to Testing 11967 | -3/Research | Entered Testing 11987 | -3/Testing | Repaired Lrg. Storage Unit 12199 | -3/Testing | Scanned by Researcher 12211 | -3/Testing | Found Prototype Energy Cannon 12224 | -3/Testing | Identified Hpw. Disruptor Cannon 12264 | -3/Testing | Spotted PD-FWLK066TWG 12287 | -3/Testing | Destroyed PD-FWLK066TWG 12689 | -3/Testing | Spotted Alpha 7 12692 | -3/Testing | Spotted OK-25M(L) 12694 | -3/Testing | Spotted M7-NJF(L) 12694 | -3/Testing | Spotted CH-K5A(L) 12714 | -3/Testing | Garrison activated, responded to threat 12721 | -3/Testing | Destroyed Alpha 7 12743 | -3/Testing | Found Prototype Ballistic Gun 12743 | -3/Testing | Identified Multirail 12757 | -3/Testing | Rewired M7-NJF(L) 12759 | -3/Testing | Allies destroyed OK-25M(L) 12785 | -3/Testing | Found Prototype Processor 12785 | -3/Testing | Identified Spectral Analyzer 12856 | -3/Testing | Found Prototype Device 12856 | -3/Testing | Identified Exp. ECM Suite 13066 | -3/Testing | Found Prototype Energy Cannon 13066 | -3/Testing | Identified Disintegrator 13250 | -3/Testing | First assault squad dispatched 13537 | -3/Testing | Discovered new exit (range 15) 13558 | -3/Testing | Identified exit to Research 13563 | -3/Testing | Entered Research 13563 | -2/Research | Accompanied by 1 ally 13563 | -2/Research | Warlord forces began assault on 0b10 13563 | -2/Research | Evolved 2 slots: Propulsion x2 13586 | -2/Research | Identified Vortex Catalyst Activator 13673 | -2/Research | Research machine network offline 13770 | -2/Research | Met up with Warlord 13888 | -2/Research | Spotted Striker 13903 | -2/Research | Allies destroyed Striker 14018 | -2/Research | Spotted Striker 14056 | -2/Research | Borebot progress halted 14064 | -2/Research | Discovered new exit (range 14) 14089 | -2/Research | Identified exit to Quarantine 14094 | -2/Research | Borebot progress halted 14110 | -2/Research | Entered Quarantine 14110 | -2/Quarantine | Accompanied by 1 ally 14178 | -2/Quarantine | Found Prototype Reactor 14274 | -2/Quarantine | Found Alien Slashing Weapon 14276 | -2/Quarantine | Identified Sigix Broadsword 14316 | -2/Quarantine | Discovered new exit (range 56) 14404 | -2/Quarantine | First assault squad dispatched 14473 | -2/Quarantine | Destroyed 18 combat bots 14513 | -2/Quarantine | Found Alien Artifact 14513 | -2/Quarantine | Identified Phase Armor 14570 | -2/Quarantine | Lost 3 parts (3u) 14605 | -2/Quarantine | Destroyed 8 combat bots 14651 | -2/Quarantine | System corruption reached 10% 14691 | -2/Quarantine | Found Alien Artifact 14691 | -2/Quarantine | Identified Matter Drive 14813 | -2/Quarantine | Identified exit to Access 14814 | -2/Quarantine | Entered Access 14814 | -1/Access | Evolved 2 slots: Power x1, Utility x1 14816 | -1/Access | Identified Singularity Reactor 14917 | -1/Access | Spotted B-99 Colossus 15005 | -1/Access | Destroyed B-99 Colossus 15021 | -1/Access | Garrison activated, responded to threat 15080 | -1/Access | Lost 10 parts (2n4u4w) 15088 | -1/Access | Core integrity fell below 50% 15163 | -1/Access | Discovered new exit (range 7) 15165 | -1/Access | Identified exit to Command 15165 | -1/Access | Entered Command 15312 | -1/Command | Build established: Mutant 15361 | -1/Command | Spotted B-99 Colossus 15364 | -1/Command | Core integrity fell below 20% 15384 | -1/Command | Destroyed by H-88 Terminator with KE Penetrator Last Messages --------------- 15336_ Faulty Cld. Field Propulsion Drive destroyed. 15353_ Slug penetrates S-43 Plague. 15356_ Penetrated by Slug. 15363_ Slug penetrates Wall. 15365_ Acquired Impulse Thruster. 15366_ Acquired 70 matter. 15366_ Knocked back. 15366_ Impulse Thruster destroyed. 15366_ Penetrated by Slug. 15366_ Slug penetrates Wall. 15370_ Penetrated by Slug. 15370_ Slug penetrates Wall. 15374_ Particle Reactor destroyed. 15377_ Penetrated by Slug. 15377_ Cld. Field Propulsion Drive destroyed. 15377_ Slug penetrates Wall. 15380_ Penetrated by Slug. 15381_ Slug penetrates Wall. 15383_ Slammed into H-88 Terminator. 15384_ Penetrated by Slug. Map ----- +----------------------------------------------------+ | ?????# #????????? ??????????????????????????? | | ####?# #?????????##+###########?????????????????? | | ### ########### + #?????????????????? | | # #?????????????????? | | # "" #?????????????????? | | #######+######## # """" #?????????????????? | | /####### ## + """" #?????????????????? | | # ## # "" #?????????????????? | | # ## # #?????????????????? | | # ## # #?????????????????? | | "" "" # ## ###########?????????????????? | | ""T"" + ## # #?????????????????? | | """ # #####= #?????????????????? | | #"" #???# "" #?????????????????? | | !#"" #???# """" #?????????????????? | | ########"T #???# """" #?????????????????? | | ???????#"" #???# "" #?????????????????? | | ???????#"" #???# #?????????????????? | | ???????# ##### #?????????????????? | | ???????# + ##+###+#####?????????????????? | | #########+#########ks #????????????????????? | | #?????# #????????????????????? | | #?????# #????????????????????? | | ""Y"" #????## #????????????????????? | | """"" #????# % #????????????????????? | | #????# @hh#????????????????????? | | #????# #????????????????????? | | #############????# + ???????????????????? | | #??????????# ### ??????????????????? | | ] #??????????# #?? ?????????????????? | | #??????????# #??? ????????????????? | | #??????????# #???? ????????????????? | | #??????????# ! #??????????????????????? | | #??????????# #??????????????????????? | | #?????????? ???????????????????????? | | #????????? ???????????????????????? | | #???????? ???????????????????????? | | ? #?????????##########???????????????????????? | | ?? #??????????????????????????????????????????? | | ?? #??????????????????????????????????????????? | | #???#????????????????????????????????????????????? | | ?????????????????????????????????????????????????? | | ?????????????????????????????????????????????????? | | | | | | | | | | | | | | | +----------------------------------------------------+ Best States ------------- Heat Dissipation 84 Coolant Potential 65 Energy Generation 75 Energy Capacity 1100 Matter Stores 300 Matter Capacity 300 Sight Range 23 Robot Scan Range 16 Terrain Scan Density 10 Jamming Range 8 Additional Mass Support 16 Armor Coverage 1350 Resistance: TH 25 Propulsion Shielding 66 Weapon Cycling 25 Evasion (%) 63 Targeting Accuracy 12 Target Analysis 6 Armor Integrity Analysis 66 Recoil Reduction 6 Kinecelleration 50 Salvage Targeting 3 Offensive Hacking 22 Defensive Hacking 20 Item Schematics ----------------- None Robot Schematics ------------------ None Fabricated ------------ Nothing Alien Tech Used ----------------- Dimensional Node Initializer Sigix Broadsword Phase Armor Matter Drive Achievements -------------- None Challenges ------------ None Game ------ Seed DimensionalDeepDoublenader Manual? 0 Play Time 02:13:06 Cumulative 516.9 hours Start 2021.07.30 @ 09:26:46 End 2021.07.30 @ 11:43:18 Sessions 1 Manual Loads 0 Difficulty Rogue Special Mode None Game No. 373 Rogue 366 Adventurer 0 Explorer 7 Win Type - Total 27 Types 9/3/10/1/0/1/1/1/1 Lore% 87 Gallery% 95 Achievement% 81 Wizard Run 0 Options --------- ASCII 0 Keyboard 0 Movement Numpad Keybinds 0 Fullscreen 1 Font 18/X11Bold Map View 76x50 Tactical HUD 1 Map Filters NONE Filters NONE Steam 1 RUN: 0a9de272-2853-4046-ac6b-848c6228d084